[Event "Hungarian Championship Men 2022"]
[Site "Budapest"]
[Date "2022.12.11"]
[Round "7.3"]
[White "Prohaszka, Peter"]
[Black "Fodor, Tamas Jr."]
[Result "1-0"]
[ECO "D11"]
[WhiteElo "2562"]
[BlackElo "2517"]
[Annotator "TA"]
[PlyCount "73"]
[EventDate "2022.12.03"]
[EventType "tourn"]
[EventCountry "HUN"]
[SourceTitle "playchess.com"]
[Source "ChessBase"]
[SourceQuality "1"]
[TimeControl "40/5400+30:1800+30"]

{[%evp 14,73,31,16,25,35,62,65,63,72,79,66,117,122,147,147,182,173,179,182,183,177,185,186,166,187,179,171,169,156,159,161,173,173,187,185,318,320,313,311,441,417,425,386,445,450,806,808,875,891,911,873,1120,1117,1294,1214,1214,1164,1175,1139,1175,831]} 1. d4 {[%emt 0:00:33]} d5 {[%emt 0:00:40]} 2. c4 {[%emt 0:00:16]} c6 {[%emt 0:00:06]} 3. Nf3 {[%emt 0:00:24]} Nf6 {[%emt 0:00:07]} 4. e3 {[%emt 0:00:09]} e6 {[%emt 0:02:21]} 5. Bd3 {[%emt 0:00:20]} Nbd7 {[%emt 0:04:36]} 6. O-O {[%emt 0:00:18]} dxc4 {[%emt 0:04:39]} 7. Bxc4 {[%emt 0:00:13]} Bd6 {[%emt 0:01:21]} 8. Nc3 {[%emt 0:00:06]} b5 {[%emt 0:00:25] Against e4. D46: Semi-Slav: 5 e3 Nbd7 6 Bd3, Black avoids the Meran.} 9. Bb3 $1 {[%emt 0:00:36][%mdl 4] is currently scoring better than 9.Bd3.} O-O {[%emt 0:05:19]} 10. e4 {[%emt 0:00:36][%cal Be3e4,Be4e5,Be5d6][%mdl 32]} b4 {[%emt 0:06:14] Prevents e5. White is slightly better.} 11. e5 $1 {[%emt 0:00:20] [#] Black must now prevent Na4.} bxc3 {[%emt 0:00:57]} 12. exd6 {[%emt 0:00:53]} cxb2 {[%emt 0:01:40]} ({Better is} 12... Bb7 $14) 13. Bxb2 $16 {[%emt 0:00:05][%cal Bc1b2,Bb2a3,Ba3c5][%mdl 32] [#]} Nb6 $146 {[%emt 0:14:44]} ({Predecessor:} 13... Ba6 14. Re1 Qa5 15. Ne5 Rfc8 16. Nxf7 Kxf7 17. Rxe6 Kf8 18. Re7 Nb6 19. Rf7+ Ke8 {1-0 (26) Sobenin,E (1898)-Keso,E (1978) Finland 2018}) 14. Ba3 {[%emt 0:06:19]} Bd7 {[%emt 0:02:27]} 15. Ne5 {[%emt 0:03:42]} Nfd5 {[%emt 0:02:02]} 16. Rc1 {[%emt 0:01:44]} Rc8 {[%emt 0:06:17]} 17. Bc5 {[%emt 0:06:11]} f6 {[%emt 0:01:13]} 18. Nd3 {[%emt 0:00:48]} Rb8 {[%emt 0:00:42]} 19. Re1 {[%emt 0:01:52]} Nc8 {[%emt 0:09:36]} 20. Qd2 {[%emt 0:03:04]} Qe8 {[%emt 0:05:05]} 21. Re2 {[%emt 0:09:27]} Qf7 {[%emt 0:05:43]} 22. Rce1 {[%emt 0:01:41] White is much more active. The black rooks are badly placed.} Re8 {[%emt 0:02:58]} 23. h3 {[%emt 0:04:58]} Ncb6 {[%emt 0:01:17]} 24. a4 {[%emt 0:20:39][%cal Ba2a4,Ba4a5][%mdl 32]} Rbd8 {[%emt 0:05:13]} (24... Nc8 $142) 25. a5 $18 {[%emt 0:01:40]} Nc8 {[%emt 0:00:01]} 26. Nb4 {[%emt 0:13:01][%cal Bd3b4,Bb4a6,Ba6c7,Bc7e6][%mdl 32]} g5 {[%emt 0:08:16]} (26... Qf8 $142 27. Nxc6 Bxc6) 27. Na6 {[%emt 0:05:06]} Nf4 {[%emt 0:00:02]} 28. Re3 {[%emt 0:02:01]} Kh8 {[%emt 0:00:05]} 29. Nc7 {[%emt 0:00:37] Prevents Nd5. White is clearly winning.} Rg8 {[%emt 0:01:25]} (29... Nd5 $142 30. Bxd5 cxd5 31. Nxe8 Rxe8) 30. Nxe6 {[%emt 0:01:19]} Bxe6 {[%emt 0:00:51]} 31. Bxe6 {[%emt 0:00:31]} Nxe6 {[%emt 0:00:04]} 32. Rxe6 {[%emt 0:00:05]} g4 {[%emt 0:01:26]} 33. h4 {[%emt 0:00:39]} g3 {[%emt 0:00:07]} 34. d5 {[%emt 0:01:50]} cxd5 {[%emt 0:00:54] [#]} 35. Rxf6 $3 {[%emt 0:06:19][%mdl 512]} Qxf6 {[%emt 0:00:15]} 36. Bd4 {[%emt 0:00:07]} Rxd6 {[%emt 0:00:04]} 37. fxg3 {[%emt 0:01:05] Black got outplayed after the opening.   Weighted Error Value: White=0.04 (flawless) /Black=0.30} 1-0

[Event "Hungarian Championship Men 2022"]
[Site "Budapest"]
[Date "2022.12.11"]
[Round "7.4"]
[White "Horvath, Csaba"]
[Black "Berkes, Ferenc"]
[Result "1/2-1/2"]
[ECO "D37"]
[WhiteElo "2502"]
[BlackElo "2643"]
[Annotator "TA"]
[PlyCount "80"]
[EventDate "2022.12.03"]
[EventType "tourn"]
[EventCountry "HUN"]
[SourceTitle "playchess.com"]
[Source "ChessBase"]
[SourceQuality "1"]
[TimeControl "40/5400+30:1800+30"]

{[%evp 9,80,14,22,13,23,15,15,12,22,20,18,25,20,6,7,12,10,16,11,12,13,0,0,1,0,0,0,0,21,0,14,0,0,0,0,0,0,0,0,0,0,0,0,0,0,0,0,0,0,0,0,0,0,0,0,0,0,0,0,0,0,0,0,0,0,0,0,0,0,0,0,0,0]} 1. d4 {[%emt 0:02:57]} Nf6 {[%emt 0:00:48]} 2. c4 {[%emt 0:00:16]} e6 {[%emt 0:00:13]} 3. Nf3 {[%emt 0:00:37]} d5 {[%emt 0:00:11]} 4. Nc3 {[%emt 0:00:52]} a6 {[%emt 0:06:11]} 5. c5 {[%emt 0:02:29]} Nc6 {[%emt 0:06:51]} 6. Bf4 {[%emt 0:07:36] D37: Queen's Gambit Declined: 5 Bf4.} Nh5 {[%emt 0:00:25]} 7. Bg5 {[%emt 0:00:32]} Be7 {[%emt 0:00:21]} 8. Bxe7 {[%emt 0:00:29]} Qxe7 {[%emt 0:00:06]} 9. e3 {[%emt 0:11:12]} Nf6 {[%emt 0:00:07]} 10. Be2 {[%emt 0:00:47]} O-O {[%emt 0:00:08]} 11. O-O {[%emt 0:00:18] The position is equal.} Rd8 {[%emt 0:00:19]} 12. Rc1 {[%emt 0:03:03]} h6 {[%emt 0:07:14] [#]} 13. a3 $146 {[%emt 0:01:51]} ({Predecessor:} 13. h3 e5 14. dxe5 Nxe5 15. Nxe5 Qxe5 16. Qd4 Re8 17. Rfd1 c6 18. Qxe5 Rxe5 19. Rd4 Bf5 20. Rb4 {½-½ (81) Tassone,R (1985)-Wittenberg,G (1968) GER email 2014}) 13... e5 {[%emt 0:04:17]} 14. dxe5 {[%emt 0:01:06]} Nxe5 {[%emt 0:00:09]} 15. Nxe5 {[%emt 0:02:08]} Qxe5 {[%emt 0:00:11]} 16. Qd4 {[%emt 0:00:10]} Qxd4 {[%emt 0:18:43]} 17. exd4 {[%emt 0:00:07]} Bf5 {[%emt 0:00:05]} 18. f3 {[%emt 0:02:01]} g5 {[%emt 0:00:08]} 19. Kf2 {[%emt 0:04:23]} (19. g4 $5 {[%cal Rg4f5]} Bg6 20. f4 gxf4 21. Rxf4 $11) 19... Kg7 {[%emt 0:00:37]} 20. Rfe1 {[%emt 0:01:29]} c6 {[%emt 0:02:39]} 21. Bf1 {[%emt 0:11:29]} Re8 {[%emt 0:02:41]} 22. Ne2 {[%emt 0:01:26][%cal Bc3e2,Be2c1,Bc1b3,Bb3a5][%mdl 32]} h5 {[%emt 0:19:14]} 23. Rc3 {[%emt 0:02:51]} h4 {[%emt 0:00:14]} 24. Nc1 {[%emt 0:03:24]} Rxe1 {[%emt 0:12:02]} 25. Kxe1 {[%emt 0:00:03]} Nh5 {[%emt 0:03:41]} 26. Kf2 {[%emt 0:06:52]} Re8 {[%emt 0:00:41]} 27. Nb3 {[%emt 0:09:51]} Bc8 {[%emt 0:00:05]} 28. Re3 {[%emt 0:01:41]} Rxe3 {[%emt 0:00:15]} 29. Kxe3 $11 {[%emt 0:00:02][%mdl 4096] Endgame KBN-KBN} f5 {[%emt 0:00:31]} 30. Na5 {[%emt 0:03:43]} Kf6 {[%emt 0:00:39]} 31. b4 {[%emt 0:00:45]} f4+ {[%emt 0:01:49]} 32. Kd2 {[%emt 0:09:22]} Ng7 {[%emt 0:00:16]} 33. Bd3 {[%emt 0:00:31]} Ke7 {[%emt 0:00:47]} 34. h3 {[%emt 0:06:45]} Kd8 {[%emt 0:00:06]} 35. Nb3 {[%emt 0:00:06]} Bf5 {[%emt 0:01:17]} 36. Na1 {[%emt 0:00:21]} Bxd3 {[%emt 0:01:27]} 37. Kxd3 {[%emt 0:00:02]} Nf5 {[%emt 0:00:12]} 38. Nc2 {[%emt 0:00:12]} Kc7 {[%emt 0:01:05]} 39. a4 {[%emt 0:01:28][%cal Ba3a4,Ba4a5][%mdl 32]} b6 {[%emt 0:03:40]} 40. a5 {[%emt 0:00:00]} b5 {[%emt 0:00:00] An even fight not without its subleties.   Weighted Error Value: White=0.03 (flawless) /Black=0.01 (flawless)} 1/2-1/2

[Event "Hungarian Championship Men 2022"]
[Site "Budapest"]
[Date "2022.12.11"]
[Round "7.5"]
[White "Horvath, Adam"]
[Black "Nagy, Gabor"]
[Result "0-1"]
[ECO "C50"]
[WhiteElo "2501"]
[BlackElo "2482"]
[Annotator "TA"]
[PlyCount "78"]
[EventDate "2022.12.03"]
[EventType "tourn"]
[EventCountry "HUN"]
[SourceTitle "playchess.com"]
[Source "ChessBase"]
[SourceQuality "1"]
[TimeControl "40/5400+30:1800+30"]

{[%evp 15,78,8,9,20,6,13,14,-37,34,20,30,8,20,0,18,25,35,-31,19,14,27,35,29,0,0,0,0,0,0,0,0,0,12,12,12,12,13,12,16,17,27,10,16,22,29,0,0,0,0,-8,-25,-47,-43,-148,-62,-419,-410,-436,-431,-411,-367,-562,-561,-714,-697]} 1. e4 {[%emt 0:00:34]} e5 {[%emt 0:00:51]} 2. Nf3 {[%emt 0:00:06]} Nc6 {[%emt 0:00:10]} 3. Bc4 {[%emt 0:00:11]} Nf6 {[%emt 0:00:13]} 4. d3 {[%emt 0:00:07]} Bc5 {[%emt 0:04:04]} 5. c3 {[%emt 0:01:00]} O-O {[%emt 0:00:42]} 6. O-O {[%emt 0:00:12]} d5 {[%emt 0:00:31]} 7. exd5 {[%emt 0:00:18]} Nxd5 {[%emt 0:00:11]} 8. Re1 {[%emt 0:00:47]} Bg4 {[%emt 0:02:27]} 9. h3 {[%emt 0:00:10] 9.Nbd2 might become the main line. C54: Giuoco Piano: 4 c3 Nf6, main lines with 5 d4 and 5 d3.} Bh5 {[%emt 0:00:07]} 10. Nbd2 {[%emt 0:03:27][%cal Bb1d2,Bd2e4,Be4g3,Bg3h5][%mdl 32]} Nb6 {[%emt 0:00:48]} 11. Bb3 {[%emt 0:00:06]} (11. b4 $11 Be7 12. g4) 11... Kh8 {[%emt 0:05:02]} (11... Qxd3 $15 12. Bc2 Bxf3 13. Nxf3 Qxd1 14. Bxd1 Rae8) 12. Ne4 $14 {[%emt 0:01:21]} Bd6 {[%emt 0:00:23]} 13. a4 {[%emt 0:14:43]} (13. g4 {simplifies} Bg6 14. d4 exd4 15. Nxd4 Re8 16. Nxc6 bxc6 17. Nxd6 cxd6 18. Bf4) 13... a5 {[%emt 0:05:25]} 14. Ng3 {[%emt 0:20:57]} Bxf3 {[%emt 0:00:47]} 15. Qxf3 {[%emt 0:00:03]} (15. gxf3 Qh4 16. Re4 Qxh3 $17) 15... f5 {[%emt 0:00:12] [#] Prevents Ne4.} 16. d4 $146 {[%emt 0:00:20]} ({Weaker is} 16. Nxf5 g6 17. Nh6 Rxf3 $17) ({White should play} 16. Qh5 $14) ({Predecessor:} 16. Nf1 Qd7 17. Be3 Rae8 18. Qh5 Ne7 19. Nd2 Nbd5 20. Bg5 Nf6 21. Bxf6 gxf6 22. Bf7 {½-½ (40) Nigmatov,O (2445)-Neelotpal,D (2409) Ahmedabad 2022}) 16... e4 {[%emt 0:08:27]} (16... exd4 $15 17. Bf4 (17. Nxf5 dxc3 18. Rd1 Ne7 $17) 17... Nd7) 17. Qh5 $11 {[%emt 0:08:59]} Qe8 {[%emt 0:01:52]} 18. Qxe8 {[%emt 0:22:44]} Raxe8 {[%emt 0:00:19]} 19. Nh5 {[%emt 0:00:05]} f4 $1 {[%emt 0:08:29] ...g6 is the strong threat.} 20. g3 $1 {[%emt 0:00:43][%cal Rh5f4]} e3 $1 {[%emt 0:00:34] ( -> ...exf2+)} 21. gxf4 {[%emt 0:10:13]} exf2+ {[%emt 0:02:38]} 22. Kxf2 {[%emt 0:00:09][%cal Bg1f2,Bf2e1,Be1e2,Be2e3][%mdl 32]} Rxe1 {[%emt 0:00:09]} 23. Kxe1 {[%emt 0:00:03]} g6 {[%emt 0:00:20]} 24. Ng3 {[%emt 0:00:18]} Bxf4 {[%emt 0:00:09]} 25. Bxf4 {[%emt 0:00:35]} Rxf4 {[%emt 0:00:05]} 26. Ke2 {[%emt 0:02:06]} Kg7 {[%emt 0:03:36]} 27. Ke3 {[%emt 0:06:59]} Rh4 {[%emt 0:01:37]} 28. Rf1 {[%emt 0:00:04] Hoping for Rf7+.} Nd8 {[%emt 0:02:15] Against Rf7+} (28... Rxh3 $2 29. Rf7+ Kh6 30. Kf3 $18) 29. Rf3 {[%emt 0:00:37]} c5 {[%emt 0:01:22]} 30. Ne2 {[%emt 0:06:16]} (30. dxc5 $5 Nd7 31. Ne4 $11) 30... c4 {[%emt 0:01:53]} 31. Bc2 {[%emt 0:00:02]} Ne6 {[%emt 0:00:17]} 32. Kf2 {[%emt 0:01:11]} Ng5 {[%emt 0:02:29][%csl LRf3,LRh3]} 33. Re3 {[%emt 0:00:10] aiming for Re7+.} Rxh3 {[%emt 0:00:20]} 34. Re7+ {[%emt 0:01:19]} (34. Re5 $1 $15 Kh6 35. Rxa5) 34... Kf6 {[%emt 0:00:07]} (34... Kh6 $1 $17 {Strongly threatening ...Nd5.} 35. Re3 Rh2+ 36. Kf1 Nd5) 35. Rxb7 $2 {[%emt 0:00:09][%mdl 8192] Loses the game.} ({Only move:} 35. Re5 $1 $15) 35... Nd5 $19 {[%emt 0:00:06]} 36. Kg1 {[%emt 0:00:53] Prevents Rh2.} Ne3 {[%emt 0:03:55] White must now prevent ...Rf3.} 37. Rb6+ {[%emt 0:00:07] [#]} Kg7 $1 {[%emt 0:00:15]} 38. Rb5 {[%emt 0:00:20] [#]} (38. Bxg6 $142 hxg6 39. Nf4 Rg3+ 40. Kf2 Ne4+ 41. Ke2) 38... Kh6 $1 {[%emt 0:01:20] Threatens to win with ...Rf3.} ({Inferior is} 38... Nf3+ 39. Kf2 Nh2 40. Be4 $11) 39. Rxa5 {[%emt 0:00:56]} Rf3 {[%emt 0:00:48] Weighted Error Value: White=0.38/Black=0.08 (flawless)} 0-1

[Event "Hungarian Championship Men 2022"]
[Site "Budapest"]
[Date "2022.12.12"]
[Round "8.1"]
[White "Kozak, Adam"]
[Black "Nagy, Gabor"]
[Result "1/2-1/2"]
[ECO "A16"]
[WhiteElo "2538"]
[BlackElo "2482"]
[Annotator "TA"]
[PlyCount "60"]
[EventDate "2022.12.03"]
[EventType "tourn"]
[EventCountry "HUN"]
[SourceTitle "playchess.com"]
[Source "ChessBase"]
[SourceQuality "1"]
[TimeControl "40/5400+30:1800+30"]

{[%evp 20,60,13,16,27,29,21,23,33,0,0,0,0,0,0,0,0,0,0,0,0,0,0,0,0,0,0,0,0,0,0,0,0,0,0,0,0,0,0,0,0,0,0]} 1. c4 {[%emt 0:02:59]} Nf6 {[%emt 0:01:48]} 2. Nc3 {[%emt 0:00:26]} c5 {[%emt 0:00:35]} 3. Nf3 {[%emt 0:00:55]} e6 {[%emt 0:01:43]} 4. d4 {[%emt 0:06:32]} cxd4 {[%emt 0:01:16]} 5. Nxd4 {[%emt 0:00:10]} Bb4 {[%emt 0:04:16]} 6. g3 {[%emt 0:14:34]} O-O {[%emt 0:04:19]} 7. Bg2 {[%emt 0:01:04]} d5 {[%emt 0:00:15]} 8. cxd5 {[%emt 0:03:33]} Nxd5 {[%emt 0:00:50]} 9. Bd2 {[%emt 0:00:51]} Nxc3 {[%emt 0:07:55]} 10. bxc3 {[%emt 0:00:08]} Be7 {[%emt 0:01:25]} 11. Rb1 {[%emt 0:00:09]} a6 {[%emt 0:09:08] E20: Nimzo-Indian: 4 g3 and 4 f3.} 12. O-O {[%emt 0:03:29]} (12. Bxb7 $2 Bxb7 13. f3 (13. Rxb7 $2 Qd5 $19) 13... Bd5 $19) 12... Qc7 {[%emt 0:03:01]} 13. Qb3 {[%emt 0:14:40][%cal Rg2b7]} Nd7 {[%emt 0:03:33] White has an edge.} 14. Nxe6 {[%emt 0:01:03]} fxe6 {[%emt 0:01:27] The position is equal.} 15. Qxe6+ {[%emt 0:00:15]} Rf7 {[%emt 0:00:15] aiming for ...Nc5.} 16. Bf4 {[%emt 0:00:44]} (16. Bd5 Ne5 17. Qb6 Qxb6 18. Rxb6 Kf8 $1 $15) 16... Qd8 {[%emt 0:00:38]} 17. Rfd1 {[%emt 0:02:01]} (17. Bxb7 $2 {is the wrong capture.} Bxb7 18. Rfd1 {[#]} (18. Rxb7 $2 {perishes.} Nc5 $19) 18... Qf8 $1 19. Rxd7 Bc8 $19) 17... Qe8 {[%emt 0:01:52]} 18. Bd5 $1 {[%emt 0:01:12][%cal Of4d6]} (18. Bxb7 $2 {loses.} Bxb7 19. Qxd7 Bf6 20. Qxe8+ Rxe8 $19) 18... Nf6 {[%emt 0:01:32]} 19. Qxf7+ {[%emt 0:00:10]} Qxf7 {[%emt 0:00:09]} 20. Bxf7+ {[%emt 0:00:03]} Kxf7 {[%emt 0:00:12]} 21. c4 {[%emt 0:06:57] [#] Against b5} b5 $146 {[%emt 0:04:56]} ({Predecessor:} 21... Ne4 22. Be5 a5 23. Rb5 Ra6 24. f3 Nc5 25. Rd5 Nd7 26. Rxa5 Rc6 27. Rd3 Nxe5 28. Rxe5 Rxc4 {0-1 (40) Curic,D (2218)-Henrichs,T (2459) Essen 2002}) 22. cxb5 {[%emt 0:03:49]} axb5 {[%emt 0:00:10]} 23. Rxb5 {[%emt 0:00:07]} Rxa2 {[%emt 0:00:20]} 24. Rd2 {[%emt 0:03:07]} Rxd2 {[%emt 0:04:07]} 25. Bxd2 {[%emt 0:00:07]} Ba6 $1 {[%emt 0:00:06]} 26. Rb2 {[%emt 0:05:24]} Bxe2 {[%emt 0:00:28]} 27. Bb4 {[%emt 0:00:19]} Bf3 {[%emt 0:00:22]} 28. Bxe7 {[%emt 0:00:06]} Kxe7 {[%emt 0:00:06]} 29. Rb3 {[%emt 0:00:07]} Bd5 {[%emt 0:00:11]} 30. Re3+ {[%emt 0:00:06]} Kf7 {[%emt 0:00:11] An even fight not without its subleties.   Weighted Error Value: White=0.02 (flawless) /Black=0.01 (flawless)} 1/2-1/2

[Event "Hungarian Championship Men 2022"]
[Site "Budapest"]
[Date "2022.12.12"]
[Round "8.2"]
[White "Berkes, Ferenc"]
[Black "Horvath, Adam"]
[Result "1/2-1/2"]
[ECO "E11"]
[WhiteElo "2643"]
[BlackElo "2501"]
[Annotator "TA"]
[PlyCount "108"]
[EventDate "2022.12.03"]
[EventType "tourn"]
[EventCountry "HUN"]
[SourceTitle "playchess.com"]
[Source "ChessBase"]
[SourceQuality "1"]
[TimeControl "40/5400+30:1800+30"]

{[%evp 17,108,12,6,5,5,8,19,3,12,0,8,0,0,-6,0,0,0,0,0,0,0,0,0,0,0,0,8,0,0,0,0,0,0,2,10,10,13,10,7,7,12,10,12,12,33,12,19,0,8,0,0,0,23,0,0,0,0,0,0,0,45,52,44,0,0,0,0,0,0,0,0,0,8,8,8,0,0,0,0,0,0,0,8,8,10,0,0,0,0,0,0,0,0]} 1. d4 {[%emt 0:00:34]} Nf6 {[%emt 0:00:36]} 2. c4 {[%emt 0:00:26]} e6 {[%emt 0:00:06]} 3. Nf3 {[%emt 0:00:07]} Bb4+ {[%emt 0:00:10]} 4. Bd2 {[%emt 0:00:07]} Bxd2+ {[%emt 0:00:43]} 5. Qxd2 {[%emt 0:00:51]} d5 {[%emt 0:00:53]} 6. Nc3 {[%emt 0:01:42]} O-O {[%emt 0:00:35]} 7. e3 {[%emt 0:05:23]} Qe7 {[%emt 0:01:07]} 8. Qc2 {[%emt 0:03:08]} dxc4 {[%emt 0:27:05]} 9. Bxc4 {[%emt 0:00:13]} c5 {[%emt 0:00:04]} 10. O-O {[%emt 0:05:24] E11: Bogo-Indian.} cxd4 {[%emt 0:08:41]} 11. exd4 {[%emt 0:00:42]} Qc7 {[%emt 0:00:05]} 12. Qe2 {[%emt 0:02:32]} Nc6 {[%emt 0:00:57] [#]} 13. Rad1 $146 {[%emt 0:02:46]} ({Predecessor:} 13. Rac1 Qf4 14. Qe3 Qxe3 15. fxe3 Rd8 16. Rcd1 Ng4 17. Rfe1 b6 18. e4 Bb7 19. d5 {½-½ (68) Grachev,B (2652)-Pavasovic,D (2607) Sibenik 2009}) 13... Bd7 {[%emt 0:04:13]} 14. Ne4 {[%emt 0:25:33]} Nd5 {[%emt 0:19:32]} 15. Rfe1 {[%emt 0:00:21]} Rad8 {[%emt 0:03:54]} 16. h3 {[%emt 0:05:06]} h6 {[%emt 0:01:48]} 17. Bxd5 {[%emt 0:04:22]} exd5 {[%emt 0:00:05]} 18. Nc3 {[%emt 0:00:04]} Rfe8 {[%emt 0:04:12]} 19. Qd2 {[%emt 0:00:25]} Rxe1+ {[%emt 0:00:22]} 20. Rxe1 {[%emt 0:00:07]} Be6 {[%emt 0:06:05]} 21. Ne5 {[%emt 0:00:59]} a6 {[%emt 0:00:10]} 22. Na4 {[%emt 0:09:25]} Nxe5 {[%emt 0:02:59]} 23. Rxe5 {[%emt 0:00:06]} b6 {[%emt 0:00:10]} 24. Nc3 {[%emt 0:00:20]} Rd6 {[%emt 0:03:17]} 25. a3 {[%emt 0:02:32]} f6 {[%emt 0:01:43]} 26. Re3 {[%emt 0:02:13]} Bf7 {[%emt 0:02:38]} 27. Qe2 {[%emt 0:01:32]} Qc8 {[%emt 0:02:12]} 28. Qf3 {[%emt 0:04:39]} b5 {[%emt 0:01:05]} 29. Qf4 {[%emt 0:03:15]} Rd7 {[%emt 0:01:31]} (29... Re6 {simplifies} 30. Rxe6 Qxe6 31. Qd2 Qf5) 30. Rg3 {[%emt 0:01:36]} Qc7 {[%emt 0:01:24]} 31. Qg4 {[%emt 0:01:44][%csl Gg3][%cal Rg4g7] [#]} g6 {[%emt 0:00:04]} 32. Re3 {[%emt 0:01:37]} Kg7 {[%emt 0:02:18]} 33. Ne2 {[%emt 0:06:02][%cal Bc3e2,Be2c1,Bc1d3,Bd3c5][%mdl 32]} Re7 {[%emt 0:00:09]} 34. Qf4 {[%emt 0:00:47]} Qd8 {[%emt 0:00:39]} 35. Nc1 {[%emt 0:01:13]} g5 {[%emt 0:01:49]} 36. Qf3 {[%emt 0:01:30]} a5 {[%emt 0:01:42]} 37. Nd3 {[%emt 0:02:43]} Qe8 {[%emt 0:02:30]} 38. Nc5 {[%emt 0:05:24]} b4 {[%emt 0:00:24]} 39. axb4 {[%emt 0:00:41]} axb4 {[%emt 0:00:18]} 40. Qe2 {[%emt 0:00:00]} Rxe3 {[%emt 0:00:00] The position is equal.} 41. Qxe3 {[%emt 0:01:23]} Qxe3 {[%emt 0:12:31]} 42. fxe3 $11 {[%emt 0:00:07][%mdl 4096] Endgame KB-KN} Bg6 {[%emt 0:00:03] Prevents Nd3.} 43. Kf2 {[%emt 0:03:40]} h5 {[%emt 0:01:05]} 44. g3 {[%emt 0:19:36]} Bf5 {[%emt 0:05:20]} 45. h4 {[%emt 0:00:34]} Kg6 {[%emt 0:00:34]} 46. Na6 {[%emt 0:00:37]} b3 {[%emt 0:00:06]} 47. Nc7 {[%emt 0:00:12]} Be4 {[%emt 0:00:12]} 48. Nb5 {[%emt 0:00:36]} Bd3 $1 {[%emt 0:13:22]} 49. Nd6 {[%emt 0:00:04] Black must now prevent Ke1.} Bc2 {[%emt 0:00:25]} 50. Ke2 {[%emt 0:01:08] Hoping for Kd2.} Kg7 $1 {[%emt 0:00:45]} 51. Kf3 {[%emt 0:07:46]} Bd1+ {[%emt 0:00:18]} 52. Kf2 {[%emt 0:00:04] [#] Strongly threatening Nb5.} Bc2 $1 {[%emt 0:00:05]} 53. Kf3 {[%emt 0:00:39]} Bd1+ {[%emt 0:01:49]} 54. Kf2 {[%emt 0:00:31] Threatens to win with Nb5.} Bc2 $1 {[%emt 0:00:23] Weighted Error Value: White=0.04 (flawless) /Black=0.03 (flawless)} 1/2-1/2